Cogmind - Beta 15 @@@ ROGUE MODE // 2025.08.26 @ 02:11:15 Player: Drago Result: Destroyed by P-60 Hacker with Shock Rifle Performance ------------- Evolutions (4) 2000 Regions Visited (7) 1400 Robots Destroyed (216) 1080 Value Destroyed (7336) 7336 Prototype IDs (25) 500 Alien Tech Used (0) 0 Bonus (2994) 2994 TOTAL SCORE: 15310 Bonus ------- Triggered High Security 500 High Alert Combat Kills 1774 Follower Combat Kills 101 Registered with UFD 300 Met Optimus in HQ 500 Friendly Fire -181 Cogmind --------- Core Integrity 0/850 Matter 162/300 Energy 336/340 System Corruption 4% Temperature Cool (-148) Movement Walking (270) Ox2 Location -6/Lower Caves Parts ------- > --- POWER (1) -------- Light Deuterium Engine > --- PROPULSION (4) --- VSS Leg > --- UTILITY (6) ------ Improved Cryofiber Web Large Storage Unit Compact Battery Enhanced Optical Array IFF Parser Weapon Mount > --- WEAPON (4) ------- Great Axe > --- INVENTORY (15) --- Improved Thermal Generator High-capacity Storage Unit Energy Well (350) Matter Compressor (250) Advanced Terrain Scanner Seismic Detector Transmission Jammer Hacking Suite High-powered Tractor Beam Long-range Missile Launcher Botcube Peak State ------------ > --- POWER ------------ F-cell Engine > --- PROPULSION ------- Carbon-fiber Leg Carbon-fiber Leg Carbon-fiber Leg Flexi-carbon Leg > --- UTILITY ---------- Scrap Suit Improved Thermal Generator Advanced Heat Sink High-capacity Storage Unit Weapon Mount > --- WEAPON ----------- Plasma Rifle Coil Gun Coil Gun Coil Gun > --- INVENTORY -------- Fission Core Carbon-fiber Leg Compact Wheel Advanced Heat Sink Large Storage Unit Energy Well Matter Compressor Triangulator Enhanced Optical Array IFF Parser Seismic Detector Kinecellerator Improved Light Armor Plating Hacking Suite High-powered Tractor Beam Phase Cannon Magnetic Acceleration Cannon Rocket Launcher Long-range Missile Launcher Botcube [Rating: 72] Favorites ----------- Power Cooled Ion Engine Engine Cooled Ion Engine Power Core Fission Core Propulsion Light Treads Treads Light Treads Leg Carbon-fiber Leg Wheel Wheel Utility High-capacity Storage Unit Device Weapon Mount Storage High-capacity Storage Unit Processor Advanced Signal Interpreter Protection Hardened Light Armor Plating Weapon Coil Gun Energy Gun Heavy Laser Energy Cannon Phase Cannon Ballistic Gun Coil Gun Ballistic Cannon Magnetic Acceleration Cannon Launcher Rocket Launcher Special Weapon Welding Torch Impact Weapon Flail Slashing Weapon Great Axe Build | -11 -10 -9 -9 -9 -9 -6 -6 ------- Run | Yrd Mat Mat Sto Rec Scr Fac Low Slots Evolved 8 | . . 2 . . . 6 . Power . | . . . . . . . . Propulsion 2 | . . 1 . . . 1 . Utility 4 | . . 1 . . . 3 . Weapon 2 | . . . . . . 2 . Parts Attached 135 | 7 2 20 19 1 8 76 2 Power 10 | 1 . 2 2 . . 4 1 Engine 9 | 1 . 2 2 . . 3 1 Core 1 | . . . . . . 1 . Reactor . | . . . . . . . . Propulsion 37 | 2 . 7 6 . 1 21 . Treads 19 | 2 . 6 6 . 1 4 . Leg 16 | . . . . . . 16 . Wheel 2 | . . 1 . . . 1 . Hover . | . . . . . . . . Flight . | . . . . . . . . Utility 38 | 2 1 5 5 1 2 21 1 Device 20 | 1 . . 2 . 1 16 . Storage 5 | 1 1 2 . . . 1 . Processor 3 | . . . . . . 2 1 Hackware . | . . . . . . . . Protection 10 | . . 3 3 1 1 2 . Artifact . | . . . . . . . . Weapon 50 | 2 1 6 6 . 5 30 . Energy Gun 10 | . . 1 . . . 9 . Energy Cannon 6 | . . . 2 . . 4 . Ballistic Gun 20 | 2 . 3 2 . 3 10 . Ballistic Cannon 5 | . . . 1 . 1 3 . Launcher 4 | . 1 2 . . . 1 . Special Weapon 1 | . . . . . 1 . . Impact Weapon 1 | . . . 1 . . . . Slashing Weapon 3 | . . . . . . 3 . Piercing Weapon . | . . . . . . . . Special Melee Weapon . | . . . . . . . . Unidentified Prototypes 8 | . . 2 2 . . 4 . Parts Lost 65 | . . 2 8 . . 54 1 Power 4 | . . . 1 . . 3 . Propulsion 18 | . . 1 3 . . 14 . Utility 11 | . . 1 1 . . 8 1 Weapon 32 | . . . 3 . . 29 . Highest Loss Streak 9 | . . 1 2 . . 9 2 To Critical Strikes 3 | . . . . . . 3 . Average Backups 14 | 2 7 10 14 13 15 16 10 Power . | . 1 . 1 1 1 . . Propulsion 1 | . 1 1 1 3 3 1 . Utility 8 | . 3 4 7 6 7 10 9 Weapon 3 | . 2 4 4 3 4 3 1 Tool/Special . | . . . . . . . . Unused Backups 21 | . . 5 5 . 3 2 6 Power 3 | . . 1 1 . . 1 . Propulsion 4 | . . . 3 . 1 . . Utility 12 | . . 3 1 . 2 1 5 Weapon 2 | . . 1 . . . . 1 Tool/Special . | . . . . . . . . Average Slot Usage (%) 92 | . 100 99 98 95 91 91 56 Engine 7 | . 14 11 10 11 11 4 5 Treads 23 | . 28 32 32 33 33 14 . Leg 5 | . . . . . . 11 6 Device 15 | . 14 11 9 7 4 23 18 Storage 9 | . 14 11 11 11 11 6 13 Protection 6 | . . 10 12 11 11 2 . Energy Gun 3 | . . 7 1 . . 4 . Energy Cannon 3 | . . . 12 10 . 2 . Ballistic Gun 12 | . 28 14 7 10 20 11 . Ballistic Cannon 1 | . . . 1 . 1 3 . Peak Build Rating 72 | 7 8 19 21 20 34 72 38 Average Rating 37 | 5 7 16 18 19 26 58 35 On Entrance 17 | . 7 8 19 20 13 34 36 Naked Turns . | . . . . . . . . Heaviest Build 93 | 15 20 62 43 58 65 93 45 Greatest Support 88 | 40 40 63 72 72 68 88 12 Greatest Overweight (x) 5 | . . . . . . 5 3 Average Overweight (x) . | . . . . . . . 2 Largest Inventory Capacity 20 | 8 10 20 15 20 20 20 15 Average Capacity 17 | 7 8 11 15 17 20 19 15 Most Carried 20 | 4 10 15 15 15 20 20 13 Average Carried 15 | 2 8 10 14 13 16 18 11 Final Capacity 20 | 8 10 15 15 20 20 15 15 Final Carried 20 | 4 10 15 14 15 20 13 11 Class Distribution -------------------- 55% | Mutant 36% | Scavenger-Gunner 6% | Scavenger-Mutant Dominant Class ---------------- Mutant | -10/Materials Mutant | -9/Materials Mutant | -9/Storage Mutant | -9/Recycling Mutant | -9/Scraptown Scavenger-Gunner | -6/Factory Mutant | -6/Lower Caves Resources | -11 -10 -9 -9 -9 -9 -6 -6 ----------- Run | Yrd Mat Mat Sto Rec Scr Fac Low Matter Collected 5504 | 330 127 940 669 106 236 3052 44 Remotely 129 | . . . . . . 129 . Salvage Created 8594 | 131 344 1417 1367 110 . 5225 . Parts 489 | 7 22 103 71 4 . 282 . Haulers Intercepted 9 | . . 6 3 . . . . Recyclers Shooed 5 | . . 1 1 . . 3 . Parts Field Recycled . | . . . . . . . . Retrieved Matter . | . . . . . . . . Parts Self-Destructed . | . . . . . . . . Prevented . | . . . . . . . . Kills | -11 -10 -9 -9 -9 -9 -6 -6 ------- Run | Yrd Mat Mat Sto Rec Scr Fac Low Combat Hostiles Destroyed 154 | . 8 29 27 2 . 88 . Melee 1 | . . . . . . 1 . Guns 81 | . 6 21 5 1 . 48 . Cannons 35 | . . . 11 1 . 23 . AOE 35 | . 2 8 10 . . 15 . Classes Destroyed 17 | 2 3 6 2 . . 4 . Worker 17 | . 1 2 1 . . 13 . Builder 11 | . . 2 1 . . 8 . Tunneler 3 | 2 . 1 . . . . . Hauler 9 | . . 6 3 . . . . Recycler 10 | 1 1 1 2 . . 5 . Mechanic 3 | . . . 1 . . 2 . Operator 1 | . . . 1 . . . . Watcher 7 | . . 1 1 . . 5 . Swarmer 24 | . 3 10 4 . . 7 . Grunt 76 | . 5 9 13 . . 49 . Brawler 5 | . . 1 1 1 . 2 . Duelist 6 | . . 1 1 . . 4 . Sentry 22 | . . 8 8 1 . 5 . Hunter 6 | . . . . . . 6 . Programmer 13 | . . . . . . 13 . Heavy 1 | . . . . . . 1 . Behemoth 1 | . . . . . . 1 . Thug 1 | . . . 1 . . . . Best Kill Streak 11 | 2 4 7 8 1 . 11 . Combat Bots Only 8 | . 3 5 7 1 . 8 . Max Kills in Single Turn 5 | 1 2 2 4 1 . 5 . Gunslinging 1 | . . . . . . 1 . Exploded 4 | . 2 2 4 . . 3 . Melee 1 | . . . . . . 1 . Uniques/NPCs Destroyed . | . . . . . . . . Combat | -11 -10 -9 -9 -9 -9 -6 -6 -------- Run | Yrd Mat Mat Sto Rec Scr Fac Low Hostile Shots Fired 989 | . 52 139 124 6 . 663 5 Missed 306 | . 15 42 36 . . 212 1 Hits 683 | . 37 97 88 6 . 451 4 Melee 29 | . . 6 . . . 21 2 Projectile 654 | . 37 91 88 6 . 430 2 Critical Strikes 34 | . . 6 5 . . 23 . Part Disruptions 2 | . . . . . . 2 . Damage Taken 11248 | . 381 1363 1307 83 . 8070 44 Core 1194 | . 94 124 120 . . 824 32 Absorbed by Shields 61 | . . . . . . 61 . Regen/Repaired (Parts) 81 | . . . . . . 81 . Core Remaining (%) 67 | 100 62 . . . 39 . . Volleys Fired 508 | 10 22 118 87 6 . 265 . Largest 4 | 2 2 2 2 2 . 4 . Hottest 228 | 40 40 79 136 91 . 228 . Shots Fired 1093 | 20 43 208 164 14 . 644 . Gun 780 | 20 42 200 77 6 . 435 . Cannon 281 | . . . 81 8 . 192 . Launcher 32 | . 1 8 6 . . 17 . Special . | . . . . . . . . Kinetic 715 | 20 42 149 77 6 . 421 . Thermal 337 | . . 51 81 8 . 197 . Explosive 32 | . 1 8 6 . . 17 . Electromagnetic 9 | . . . . . . 9 . Robot Hit Streak 32 | 8 7 10 13 4 . 32 . Robot Miss Streak 4 | 2 3 4 3 1 . 3 . Penetration Max 2 | . . . . . . 2 . Secondary Targets 17 | . . 2 . . . 15 . Max Gunslinging Chain 2 | . . 1 . . . 2 . Shots Hit Robots 712 | 13 26 131 107 8 . 425 2 Core Hits 367 | 4 18 58 47 2 . 238 . Critical Kills 7 | . . . 1 . . 6 . Critical Parts Destroyed 12 | 1 . 1 . . . 10 . Critical Strikes 41 | 1 . 7 4 . . 28 1 Burn 14 | . . 6 2 . . 6 . Meltdown 1 | . . . 1 . . . . Destroy 19 | 1 . 1 . . . 17 . Blast 4 | . . . 1 . . 3 . Sever 3 | . . . . . . 2 1 Melee Attacks 13 | . . . 2 . . 8 3 Thermal 4 | . . . . . . 4 . Impact 2 | . . . 2 . . . . Slashing 7 | . . . . . . 4 3 Piercing . | . . . . . . . . Sneak Attacks . | . . . . . . . . Combat Hostiles . | . . . . . . . . Follow-up Attacks . | . . . . . . . . Damage Inflicted 19716 | 164 403 2571 3121 170 . 13220 67 Guns 10225 | 164 341 1997 831 67 . 6825 . Cannons 4355 | . . . 1094 103 . 3158 . Explosions 4957 | . 62 574 1196 . . 3125 . Melee 176 | . . . . . . 109 67 Ramming 3 | . . . . . . 3 . Kinetic 9856 | 164 341 1385 841 67 . 7058 . Thermal 5271 | . . 612 1084 103 . 3472 . Explosive 4260 | . 62 574 1196 . . 2428 . Electromagnetic 150 | . . . . . . 150 . Impact . | . . . . . . . . Slashing 176 | . . . . . . 109 67 Piercing . | . . . . . . . . Highest Corruption 8 | . . 8 8 8 . 4 4 Average Corruption 4 | . . 6 8 8 . 2 4 Corruption Purged . | . . . . . . . . Corruption Blocked . | . . . . . . . . Effects 173 | . . 26 48 24 . 66 9 Message Errors 41 | . . 9 7 8 . 17 . Matter Fused 37 | . . 4 15 3 . 14 1 Heat Flow Errors 24 | . . 3 7 6 . 6 2 Energy Discharges 13 | . . 2 2 . . 7 2 Parts Rejected 6 | . . . 1 2 . 3 . Parts Fused 3 | . . . 1 . . 2 . Data Loss (minor) 15 | . . 2 2 2 . 5 4 Data Loss (major) 9 | . . 2 3 . . 4 . Misfires 11 | . . 1 4 2 . 4 . Alerts 5 | . . 1 1 1 . 2 . Weapon Failures 9 | . . 2 5 . . 2 . Overload Shots . | . . . . . . . . Overflow Damage 423 | . . 40 7 . . 376 . Projectiles 48 | . . . . . . 48 . Explosions 375 | . . 40 7 . . 328 . Melee . | . . . . . . . . Knockbacks 17 | . . . 3 . . 14 . Impact . | . . . . . . . . Kinetic 15 | . . . 2 . . 13 . Secondary 2 | . . . 1 . . 1 . Self-Inflicted Damage 201 | . . . . . . 201 . Shots 5 | . . . . . . 5 . Rammed . | . . . . . . . . Targets Rammed 1 | . . . . . . 1 . Kicked 1 | . . . . . . 1 . Crushed . | . . . . . . . . Highest Temperature 361 | . 2 311 361 320 . 273 40 Average Temperature 81 | . 2 86 95 120 . 59 24 Received Heat Transfer 3018 | . 147 396 606 27 . 1842 . Effects 3 | . . . 3 . . . . Energy Bleed 1 | . . . 1 . . . . Interference 2 | . . . 2 . . . . Siege Activations . | . . . . . . . . Martial Activations . | . . . . . . . . Shielding Activations . | . . . . . . . . Robots Disrupted . | . . . . . . . . Combat Hostiles . | . . . . . . . . Robots Corrupted . | . . . . . . . . Combat Hostiles . | . . . . . . . . Parts Fried . | . . . . . . . . Impact Corruptions . | . . . . . . . . Robots Melted 1 | . . . 1 . . . . Combat Hostiles 1 | . . . 1 . . . . Parts Melted 11 | . . 4 1 . . 6 . Heat Transferred 9799 | . . 1776 2183 185 . 5655 . Parts Sabotaged 7 | . . . . . . 7 . Parts Stolen 1 | . . . . . . . 1 Parts Stripped . | . . . . . . . . Power Chain Reactions 1 | . . . . . . 1 . Alert | -11 -10 -9 -9 -9 -9 -6 -6 ------- Run | Yrd Mat Mat Sto Rec Scr Fac Low Maximum Alert Level 5 | . . 1 1 . . 5 . Low Security (%) 53 | 100 100 66 55 100 . 37 . Level 1 17 | . . 33 44 . . 10 . Level 2 7 | . . . . . . 14 . Level 3 7 | . . . . . . 14 . Level 4 7 | . . . . . . 13 . Level 5 2 | . . . . . . 5 . High Security 3 | . . . . . . 5 . Max Security . | . . . . . . . . Peak Influence 1798 | 5 141 372 292 103 . 1798 . Initial 105 | . . 50 105 103 . . . Average 407 | . 33 168 158 18 . 636 . Influence Increases 5196 | 15 221 913 976 64 . 3007 . Destroy 0b10 Robot/C 3140 | . 160 580 600 40 . 1760 . Destroy 0b10 Robot/NC 305 | 15 10 65 50 . . 165 . Destroy Leader 792 | . 40 184 168 . . 400 . Allied During Kill 38 | . . . 38 . . . . Successful Hack 101 | . . 22 31 24 . 24 . Disable Machine 300 | . . 15 45 . . 240 . Destroy Structure 340 | . 11 47 44 . . 238 . Partial Spotted 15 | . . . . . . 15 . Lose Combat Pursuer 165 | . . . . . . 165 . Influence Decreases 4287 | 15 100 784 960 330 . 1219 879 Entered New Map 1042 | . . 71 145 163 . . 663 Time Decay 2149 | 15 100 543 482 124 . 679 206 Lost Part 650 | . . 20 80 . . 540 10 Lost Ally 20 | . . . 20 . . . . Purge Threat 426 | . . 150 233 43 . . . Squads Dispatched 45 | . 2 4 4 . . 35 . Investigation 8 | . . 1 . . . 7 . Extermination 9 | . . . . . . 9 . Reinforcement 14 | . 2 3 2 . . 7 . Assault 14 | . . . 2 . . 12 . Garrison . | . . . . . . . . Intercept . | . . . . . . . . Searches Triggered . | . . . . . . . . Construction Impeded 2 | . . . . . . 2 . Haulers Reinforced 1 | . . . . . . 1 . Active Scanning Responses . | . . . . . . . . Cargo Convoy Interrupts . | . . . . . . . . Stealth | -11 -10 -9 -9 -9 -9 -6 -6 --------- Run | Yrd Mat Mat Sto Rec Scr Fac Low Distress Signals 7 | . . 3 1 . . 3 . Communications Jammed . | . . . . . . . . Distress Signals . | . . . . . . . . Times Spotted 220 | . 13 40 43 2 . 120 2 Peak Tracking Total 8 | . 5 5 8 1 . 8 1 Tactical Retreats 10 | . . . . . . 10 . Traps | -11 -10 -9 -9 -9 -9 -6 -6 ------- Run | Yrd Mat Mat Sto Rec Scr Fac Low Traps Triggered 13 | . . 5 3 . . 5 . Indirectly . | . . . . . . . . Trap Hack Attempts . | . . . . . . . . Triggered . | . . . . . . . . Disarmed . | . . . . . . . . Reprogrammed . | . . . . . . . . Reused . | . . . . . . . . Traps Extracted . | . . . . . . . . Installed . | . . . . . . . . Triggered . | . . . . . . . . Machines | -11 -10 -9 -9 -9 -9 -6 -6 ---------- Run | Yrd Mat Mat Sto Rec Scr Fac Low Machines Disabled 21 | . . 2 3 . . 16 . Max in Single Turn 3 | . . 1 1 . . 3 . Garrison Access 2 | . . . . . . 2 . Machines Repaired . | . . . . . . . . Machines Dismantled . | . . . . . . . . Machines Sabotaged . | . . . . . . . . Overloaded Fab Kills . | . . . . . . . . Hacking | -11 -10 -9 -9 -9 -9 -6 -6 --------- Run | Yrd Mat Mat Sto Rec Scr Fac Low Machines Accessed 41 | . 2 6 7 5 3 18 . Terminals 26 | . 2 6 7 5 . 6 . Fabricators 4 | . . . . . . 4 . Repair Stations . | . . . . . . . . Recycling Units 5 | . . . . . . 5 . Scanalyzers . | . . . . . . . . Garrison Access 3 | . . . . . . 3 . Total Hacks 108 | . 6 18 25 16 14 29 . Successful 58 | . 1 9 12 10 14 12 . Failed 50 | . 5 9 13 6 . 17 . Catastrophic 5 | . 1 1 . . . 3 . Database Lockouts . | . . . . . . . . Manual 50 | . 2 9 11 11 . 17 . Terminals 78 | . 6 18 25 16 . 13 . Fabricators 5 | . . . . . . 5 . Repair Stations . | . . . . . . . . Recycling Units 5 | . . . . . . 5 . Scanalyzers . | . . . . . . . . Garrison Access 6 | . . . . . . 6 . Terminal Hacks 36 | . 1 5 7 7 14 2 . Record 5 | . . . . . 5 . . Part Schematic 1 | . . . . 1 . . . Robot Analysis 8 | . . . . . 8 . . Prototype ID Bank 6 | . 1 2 1 1 . 1 . Open Door 1 | . . . 1 . . . . Branch Access Points 2 | . . . 1 . . 1 . Alert Level 4 | . . 1 2 1 . . . Unreport Threat 4 | . . 1 2 1 . . . Transport Status 1 | . . . . 1 . . . Zone Layout 3 | . . 1 . 2 . . . Proto ID Catalog 1 | . . . . . 1 . . Fabricator Hacks 1 | . . . . . . 1 . Network Status 1 | . . . . . . 1 . Repair Station Hacks . | . . . . . . . . Recycling Unit Hacks . | . . . . . . . . Scanalyzer . | . . . . . . . . Garrison Access Hacks 2 | . . . . . . 2 . Seal Access 2 | . . . . . . 2 . Unauthorized Hacks 19 | . . 4 5 3 . 7 . Terminals 12 | . . 4 5 3 . . . Botnet 12 | . . 4 5 3 . . . Fabricators 2 | . . . . . . 2 . Fabnet 2 | . . . . . . 2 . Repair Stations . | . . . . . . . . Recycling Units 5 | . . . . . . 5 . Fedlink 5 | . . . . . . 5 . Scanalyzers . | . . . . . . . . Garrison Access . | . . . . . . . . Data Cores Recovered . | . . . . . . . . Used . | . . . . . . . . Hacking Detections 28 | . 2 6 6 5 . 9 . Full Trace Events 4 | . 2 1 . . . 1 . Feedback Events . | . . . . . . . . Feedback Blocked . | . . . . . . . . Robot Schematics Acquired . | . . . . . . . . Robots Built . | . . . . . . . . Authchips . | . . . . . . . . Time . | . . . . . . . . Total Robot Build Rating . | . . . . . . . . Part Schematics Acquired 1 | . . . . 1 . . . Parts Built . | . . . . . . . . Authchips . | . . . . . . . . Time . | . . . . . . . . Total Part Build Rating . | . . . . . . . . Parts Repaired . | . . . . . . . . Time . | . . . . . . . . Parts Recycled . | . . . . . . . . Recycled Matter . | . . . . . . . . Retrieved Matter . | . . . . . . . . Retrieved Components . | . . . . . . . . Parts Scanalyzed . | . . . . . . . . Part Schematics Acquired . | . . . . . . . . Parts Damaged . | . . . . . . . . Bothacking | -11 -10 -9 -9 -9 -9 -6 -6 ------------ Run | Yrd Mat Mat Sto Rec Scr Fac Low Used RIF Installer . | . . . . . . . . Robots Hacked . | . . . . . . . . Non-combat . | . . . . . . . . Combat . | . . . . . . . . Robot Hacks Applied . | . . . . . . . . Relay Couplers Released . | . . . . . . . . Fabnet Peak Effective % . | . . . . . . . . Robots Rewired . | . . . . . . . . Allies Hacked . | . . . . . . . . Hacks Repelled . | . . . . . . . . Allies | -11 -10 -9 -9 -9 -9 -6 -6 -------- Run | Yrd Mat Mat Sto Rec Scr Fac Low Total Allies 2 | . . . 2 . . . . Largest Group 2 | . . . 2 . . . . Highest-Rated Group 62 | . . . 62 . . . . Highest-Rated Ally 31 | . . . 31 . . . . Total Orders 2 | . . . . . . 2 . EXPLORE 2 | . . . . . . 2 . Ally Attacks 21 | . . . 21 . . . . Total Damage 340 | . . . 340 . . . . Kills 3 | . . . 3 . . . . Allies Corrupted . | . . . . . . . . Allies Melted . | . . . . . . . . Intel | -11 -10 -9 -9 -9 -9 -6 -6 ------- Run | Yrd Mat Mat Sto Rec Scr Fac Low Active Infowar (turns) 5124 | 25 369 1680 81 . . 2651 318 Optics 317 | . . . . . . . 317 IFF 1287 | . . . . . . 969 318 Seismic 3836 | 25 369 1680 81 . . 1681 . T.N.C. 456 | . . . . . . 456 . Triangulation 89 | . . . . . . 89 . Robot Analysis Total 8 | . . . . . 8 . . Derelict Logs Recovered . | . . . . . . . . Drone Launches 2 | . . . . . . 2 . Drone Recoveries . | . . . . . . . . Exploration | -11 -10 -9 -9 -9 -9 -6 -6 ------------- Run | Yrd Mat Mat Sto Rec Scr Fac Low Turns Passed 11810 | 149 369 1680 1293 708 1953 5236 422 Spaces Moved 5690 | 71 183 797 595 424 1239 2229 152 Core 7 | 7 . . . . . . . Treads 4575 | 64 183 797 595 424 1239 1273 . Legs 1085 | . . . . . . 933 152 Wheels 23 | . . . . . . 23 . Hover . | . . . . . . . . Flight . | . . . . . . . . Fastest Speed 50 | 50 160 160 160 160 155 105 270 Average Speed 173 | 149 160 160 160 160 155 190 271 Slowest Speed 360 | 160 160 160 160 160 160 360 360 Overloaded Moves . | . . . . . . . . Propulsion Burnouts . | . . . . . . . . Robots Hopped . | . . . . . . . . Potential Cave-ins 1 | . . . . . . 1 . Cave-ins Triggered . | . . . . . . . . Exploration Rate (%) 61 | 6 43 85 87 85 88 73 21 Regions Visited 7 Branch Regions 4 Pre-discovered Areas 1 | . . . . . . 1 . Known Exits Taken 2 | . . . 1 . . 1 . Unknown Exits Taken 5 | 1 1 1 . 1 1 . . Scrap Searched 5 | . . . . . 4 . 1 Spaces Dug 97 | . . 14 16 . . 67 . Terrain Destroyed 387 | . 11 45 55 . . 276 . Melee 1 | . . . . . . 1 . Projectile 80 | . . . . . . 80 . AOE 305 | . 11 45 55 . . 194 . Terrain Rammed . | . . . . . . . . Walls Destroyed . | . . . . . . . . Machines Disabled . | . . . . . . . . Actions | -11 -10 -9 -9 -9 -9 -6 -6 --------- Run | Yrd Mat Mat Sto Rec Scr Fac Low Total 6662 | 91 216 999 771 442 1263 2722 158 Wait 103 | . 2 26 26 1 . 48 . Move 5683 | 70 182 796 594 423 1238 2228 152 Hop . | . . . . . . . . Pick Up 68 | 4 6 15 15 . 7 21 . Fast Attach 83 | 7 . 3 10 4 8 50 1 Attach 45 | . . 4 7 1 1 30 2 Detach 9 | . . . . 2 . 7 . Swap 64 | . 3 18 12 1 1 29 . Drop 80 | . 1 19 18 4 8 30 . Fire 508 | 10 22 118 87 6 . 265 . Melee 13 | . . . 2 . . 8 3 Ram . | . . . . . . . . Kick 1 | . . . . . . 1 . Crush . | . . . . . . . . Escape Stasis 5 | . . . . . . 5 . Rewire . | . . . . . . . . Trap . | . . . . . . . . Miscellaneous . | . . . . . . . . Route ------- -11/Scrapyard -10/Materials (discovered 2 exits: *Mat x2) -9/Materials (discovered 6 exits: [*Mat x2] / [*Min x2] / *Sto x2) -9/Storage (discovered 2 exits: [*Mat] / *Rec) -9/Recycling (discovered 2 exits: [*Fac] / *Scr) -9/Scraptown (discovered 2 exits: *Fac x2) -6/Factory (discovered 5 exits: *Fac x3 / *Low x2) -6/Lower Caves History --------- Turn | Location | Event 4 | -11/Scrapyard | Discovered new exit (range 13) 150 | -11/Scrapyard | Entered Materials 151 | -10/Materials | Met a group of wandering Federalists 303 | -10/Materials | Build established: Mutant 343 | -10/Materials | Discovered new exit (range 15) 502 | -10/Materials | Discovered new exit (range 12) 519 | -10/Materials | Entered another Materials area 519 | -9/Materials | Evolved 2 slots: Propulsion x1, Utility x1 747 | -9/Materials | Discovered new exit (range 15) 927 | -9/Materials | Discovered new exit (range 12) 1017 | -9/Materials | Discovered new exit (range 11) 1146 | -9/Materials | Discovered new exit (range 16) 1720 | -9/Materials | Discovered new exit (range 15) 2165 | -9/Materials | Discovered new exit (range 15) 2199 | -9/Materials | Entered Storage 2590 | -9/Storage | Met a pair of Derelict thieves 2670 | -9/Storage | Identified exit to Recycling 2729 | -9/Storage | Destroyed 7 combat bots 3225 | -9/Storage | Core integrity fell below 50% 3257 | -9/Storage | Discovered new exit (range 16) 3487 | -9/Storage | Used back door to open Recycling access 3492 | -9/Storage | Entered Recycling 4092 | -9/Recycling | Discovered new exit (range 16) 4162 | -9/Recycling | Scanned before Scraplab entrance 4185 | -9/Recycling | Entered Scraplab 4198 | -9/Recycling | Discovered new exit (range 2) 4200 | -9/Recycling | Entered Scraptown 4200 | -9/Scraptown | System corruption cleaned by C-Scrubber 4559 | -9/Scraptown | Discovered new exit (range 13) 4673 | -9/Scraptown | Visited Shadow of the Wyrm 4695 | -9/Scraptown | Visited Red Mages 4988 | -9/Scraptown | Visited Assassins FH 5038 | -9/Scraptown | Visited Spacefarers 5098 | -9/Scraptown | Visited Symbiants 5140 | -9/Scraptown | Visited SPCMW 5162 | -9/Scraptown | Visited IN-MT5's Study 5214 | -9/Scraptown | Visited UFD Registry 5238 | -9/Scraptown | Registered with UFD as "Fluxslider" 5329 | -9/Scraptown | Visited Junk Repository 5425 | -9/Scraptown | Visited Junk Repository 5486 | -9/Scraptown | Visited Botcube Research 5540 | -9/Scraptown | Found Botcube 5563 | -9/Scraptown | Visited Curators Association 5612 | -9/Scraptown | Visited Analyses Database 5645 | -9/Scraptown | Visited Scrap Suit Storage 5653 | -9/Scraptown | Found Scrap Suit 5674 | -9/Scraptown | Visited Supply Room 5716 | -9/Scraptown | Visited Research Penetration Think Tank 5753 | -9/Scraptown | Visited Chapter 10 5782 | -9/Scraptown | Visited Science Guys 6050 | -9/Scraptown | Met Optimus 6050 | -9/Scraptown | Accepted into 0bPrime 6130 | -9/Scraptown | Civil war broke out across Scraptown 6150 | -9/Scraptown | Discovered new exit (range 3) 6153 | -9/Scraptown | Entered Factory 6153 | -6/Factory | Evolved 6 slots: Propulsion x1, Utility x3, Weapon x2 6334 | -6/Factory | Loaded intel: 8 recycling unit locations 6375 | -6/Factory | Learned location of Protoforge (-2) 6756 | -6/Factory | Build established: Scavenger-Gunner 6868 | -6/Factory | Discovered new exit (range 15) 7231 | -6/Factory | Spotted B-75 Beast 7258 | -6/Factory | Destroyed B-75 Beast 7287 | -6/Factory | Lost 5 parts (1n2u2w) 7645 | -6/Factory | Discovered new exit (range 4) 7837 | -6/Factory | Identified exit to Factory 8167 | -6/Factory | Lost 4 parts (1n1u2w) 8431 | -6/Factory | Build established: Scavenger-Mutant 8790 | -6/Factory | Build established: Scavenger-Gunner 9284 | -6/Factory | Lost 3 parts (3n) 10534 | -6/Factory | Lost 9 parts (3n1u5w) 10703 | -6/Factory | First assault squad dispatched 10784 | -6/Factory | Core integrity fell below 50% 10804 | -6/Factory | Destroyed 8 combat bots 10808 | -6/Factory | Lost 4 parts (4w) 10929 | -6/Factory | Core integrity fell below 20% 10964 | -6/Factory | Lost 9 parts (1p1n3u4w) 10970 | -6/Factory | Discovered exit to Factory (range 11) 10999 | -6/Factory | Identified exit to Lower Caves 11093 | -6/Factory | High security lockdown imminent 11173 | -6/Factory | High security lockdown engaged 11239 | -6/Factory | Lost 3 parts (1p1n1w) 11380 | -6/Factory | Lost 4 parts (1n3w) 11389 | -6/Factory | Entered Lower Caves 11515 | -6/Lower Caves | Build established: Mutant 11811 | -6/Lower Caves | Destroyed by P-60 Hacker with Shock Rifle Last Messages --------------- 11396_ Imp. Reaction Control System destroyed. 11399_ Angular Momentum Engine ripped off. 11402_ BP-X3I(f) Unknown Engine severed. 11408_ Acquired Unknown Engine. 11408_ Identified Lgt. Deuterium Engine. 11423_ System corrupted: Component data lost. 11452_ System corrupted: Heat flow error (+149). 11460_ Searching scrap... 11460_ Found Energy Filter. 11460_ Found 44 Matter. 11461_ Acquired 44 matter. 11561_ System corrupted: Component data lost. 11604_ System corrupted: Energy discharge (-108). 11665_ System corrupted: Component data lost. 11698_ System corrupted: Heat flow error (+221). 11722_ System corrupted: Energy discharge (-132). 11769_ System corrupted: Matter fused (-10). 11786_ System corrupted: Component data lost. Map ----- +----------------------------------------------------+ | ??????????????????????????????????????# ## | | ?????????????????????????????????????? ??# | | ??????????????????????????????????????? ???# | | ???????????????????????????????????????? ????## | | ?????????????????????????????????????????????# | | ?????????????????????????????????????????????## | | ??????????????????????????????????????????????## | | ??????????????????????????????????????????????## | | ?????????????????????????????????????????????## | | ?????????????????????????????????????# ## | | ??????????????????????????????????????# | | ??????????????????????????????????????## # | | ???????????????????????????????????????### #? | | ?????????????????????????????????????????## ##?? | | ??????????????????????????????????????????## #???# | | ??????????????????????????????????#####????####### | | ?????????????????????????????????## ##???# """"# | | ????????????????????????????###### ##??#" ""# | | ???????????????????????????## #??#"" "# | | ???????????????????????????# ###???# "#? | | ???????????????????????????# ##????## "## | | ?????# ???????????????????# #????##"" "# | | ?????# #######????????# #????# ### | | ?????# ##??### ## ###### ## | | ?????# p ## ## | | ??????????????# @ ##### | | ??????????????#### ## ##???################ | | ??????????????????????########???????????????????? | | ?????????????????????????????????????????????????? | | ?????????????????????????????????????????????????? | | ?????????????????????????????????????????????????? | | ?????????????????????????????????????????????????? | | ?????????????????????????????????????????????????? | | ?????????????????????????????????????????????????? | | ?????????????????????????????????????????????????? | | ?????????????????????????????????????????????????? | | ?????????????????????????????????????????????????? | | ?????????????????????????????????????????????????? | | ?????????????????????????????????????????????????? | | ?????????????????????????????????????????????????? | | ?????????????????????????????????????????????????? | | ?????????????????????????????????????????????????? | | ?????????????????????????????????????????????????? | | | | | | | | | | | | | | | +----------------------------------------------------+ Best States ------------- Heat Dissipation 75 Energy Generation 19 Energy Capacity 500 Matter Stores 300 Matter Capacity 300 Sight Range 22 Terrain Scan Density 10 Additional Mass Support 6 Base Temperature (-) 150 Armor Coverage 300 Evasion (%) 55 Targeting Accuracy 20 Recoil Reduction 4 Particle Charging 15 Kinecelleration 30 Item Schematics ----------------- Hrd. Medium Armor Plating | -9/Recycling | Hacked Robot Schematics ------------------ None Fabricated ------------ Nothing Repaired ---------- Nothing Alien Tech Used ----------------- None Achievements -------------- None Challenges ------------ None Game ------ Seed GuidanceNanofilamentsNetwork Manual? 0 Play Time 01:37:38 Cumulative 128.5 hours Start 2025.08.26 @ 00:34:10 End 2025.08.26 @ 02:11:15 Sessions 1 Manual Loads 0 Difficulty Rogue Special Mode None Game No. 109 Rogue 109 Adventurer 0 Explorer 0 Win Type - Total 1 Types 1/0/0/0/0/0/0/0/0/0 Lore% 60 Gallery% 60 Achievement% 56 Wizard Run 0 Options --------- Layout 1 ASCII 0 Keyboard 0 Movement Numpad Keybinds 0 Fullscreen 1 Font 18/SmallcapsGlow Map View 50x40 Zoom Use 0% Tactical HUD 1 Map Filters NONE Filters NONE Steam 1 RUN: ea991da0-be24-435c-84f3-89f0beeef468